[Event "Tata Steel Chess India Rapid & Blitz 2023"]
[Site "Chess.com"]
[Date "2023.09.05"]
[Round "2"]
[White "Harikrishna, Pentala"]
[Black "Gukesh, D."]
[Result "0-1"]
[WhiteElo "2646"]
[BlackElo "2651"]
[ECO "D04"]
[EventDate "2023.??.??"]
[Annotator "rafael"]
[PlyCount "104"]
[Beauty "6875168933933"]
[EventType "blitz"]
[TimeControl "1500+10"]

1.d4 Nf6 2.Nf3 d5 3.e3 c6 4.h3 Bf5 5.Nh4 ( 5.g4 $1 {[%c_effect g4;square;g4;type;GreatFind;persistent;true] is a natural way to make sense of the previous move and pose problems for Black's bishop.} ) 5...Bd7 {A curious square for the bishop.} ( 5...Be4 {is more natural.} ) 6.Bd3 c5 7.c3 $6 {[%c_effect c3;square;c3;type;Inaccuracy;persistent;true]} ( 7.c4 {is more active. A strange opening, for sure.} ) 7...Nc6 8.Nf3 Qc7 9.Nbd2 e5 $1 {[%c_effect e5;square;e5;type;GreatFind;persistent;true] A thematic break that gives Black an excellent game.} 10.e4 $6 {[%c_effect e4;square;e4;type;Inaccuracy;persistent;true] This makes the situation worse. White should accept a slightly inferior position after} ( 10.dxe5 Nxe5 11.Nxe5 Qxe5 12.Nf3 Qc7 ) 10...cxd4 $6 {[%c_effect d4;square;d4;type;Inaccuracy;persistent;true]} ( 10...exd4 $1 {[%c_effect d4;square;d4;type;GreatFind;persistent;true] is very strong. The idea is:} 11.cxd4 Nb4 12.Bb1 Bb5 $1 {[%c_effect b5;square;b5;type;GreatFind;persistent;true] and White's king is stuck in the center.} ) 11.cxd4 Nb4 12.Bb1 $2 {[%c_effect b1;square;b1;type;Mistake;persistent;true] This allows the same idea with ...Bb5.} ( 12.Nxe5 {is better:} 12...Nxd3+ 13.Nxd3 dxe4 14.Qe2 O-O-O 15.Ne5 {Black's position is preferable, but this variation is better for White than what happens in the game.} ) 12...dxe4 $2 {[%c_effect e4;square;e4;type;Mistake;persistent;true]} ( 12...Bb5 $1 {[%c_effect b5;square;b5;type;GreatFind;persistent;true] leads to a crushing advantage.} 13.a3 ( 13.dxe5 dxe4 $1 {[%c_effect e4;square;e4;type;GreatFind;persistent;true]} 14.Nd4 ( 14.Nxe4 Nxe4 15.Bxe4 Rd8 16.Bd2 Qc4 {with a decisive initiative.} ) 14...Qxe5 15.Nxb5 Nd3+ $1 {[%c_effect d3;square;d3;type;GreatFind;persistent;true]} 16.Bxd3 exd3+ 17.Kf1 Qxb5 {with a winning position for Black.} ) 13...Rc8 $1 {[%c_effect c8;square;c8;type;GreatFind;persistent;true]} ) 13.Nxe5 Rc8 $6 {[%c_effect c8;square;c8;type;Inaccuracy;persistent;true]} ( 13...Bb5 $1 {[%c_effect b5;square;b5;type;GreatFind;persistent;true] again was very strong, althought not decisive.} 14.Nxe4 Nxe4 15.Bxe4 Bd6 {with a strong initiative since White's king is insecure.} ) 14.Nxd7 Kxd7 {The king is not afraid of going to d7. Strange things happen in rapid games $1} 15.Nxe4 {This move leads to a position with a material imbalance that is difficult to assess.} ( 15.O-O $1 {[%c_effect g1;square;g1;type;GreatFind;persistent;true] is stronger, giving White the initiative. For instance:} 15...Nc2 16.Nxe4 $1 {[%c_effect e4;square;e4;type;GreatFind;persistent;true]} 16...Nxe4 ( 16...Nxa1 $2 {[%c_effect a1;square;a1;type;Mistake;persistent;true]} 17.Nxf6+ gxf6 18.Bf5+ {is winning for White.} ) 17.Qg4+ Kd8 18.Qxe4 Nxa1 19.Qd5+ {with a strong attack, even though White is a rook down at the moment.} ) 15...Qxc1 16.Nc5+ {This is White's idea.} 16...Rxc5 17.Bf5+ $1 {[%c_effect f5;square;f5;type;GreatFind;persistent;true]} 17...Rxf5 18.Rxc1 Bd6 19.O-O {I find positions with three minor pieces against queen difficult to evaluate. On the one hand, the pieces can be very dangerous if they get good coordination, but on the other hand, coordination is not easy to achieve and the queen is always a dangerous piece. The computer evaluates this position as equal.} 19...Rb8 ( 19...Rd5 $1 {[%c_effect d5;square;d5;type;GreatFind;persistent;true] it's important to blockade White's pawn.} ) 20.Re1 ( 20.d5 $1 {[%c_effect d5;square;d5;type;GreatFind;persistent;true] is an excellent sacrifice in order to activate the queen. If} 20...Rxd5 $6 {[%c_effect d5;square;d5;type;Inaccuracy;persistent;true]} 21.Qb3 {the position becomes dangerous for Black.} ) 20...Nc6 21.Rc3 ( 21.d5 $1 {[%c_effect d5;square;d5;type;GreatFind;persistent;true]} ) 21...Rd5 $1 {[%c_effect d5;square;d5;type;GreatFind;persistent;true] The pawn is now blocked, and Black is fine.} 22.Rf3 Rd8 23.Rxf6 $2 {[%c_effect f6;square;f6;type;Mistake;persistent;true] A typical blitz decision. Harikrishna sacrifices material in order to create chances for his queen to perform, but Gukesh defends well.} ( 23.Qb3 {is better, with a balanced position. A possible variation is:} 23...Kc8 24.g3 {Threatening 25.Rxf6.} ( 24.Rxf6 $2 {[%c_effect f6;square;f6;type;Mistake;persistent;true]} 24...gxf6 25.Qxd5 Bh2+ ) 24...Nxd4 25.Qc4+ Bc7 26.Rxf6 $1 {[%c_effect f6;square;f6;type;GreatFind;persistent;true]} 26...gxf6 27.Re7 Nc6 28.Rxf7 {and anything can happen.} ) 23...gxf6 24.Qf3 Kc7 25.Qxf6 Rd7 26.g3 Nxd4 27.Kg2 Nc6 {Black has stabilized the position and has a material advantage.} 28.Re2 Be5 29.Qh6 f5 $1 {[%c_effect f5;square;f5;type;GreatFind;persistent;true]} 30.Rc2 ( 30.f4 {is more stubborn, avoiding Black's next move.} ) 30...f4 $1 {[%c_effect f4;square;f4;type;GreatFind;persistent;true]} 31.g4 ( 31.gxf4 Rg7+ 32.Kf1 Rd1+ 33.Ke2 Rd6 {White's king is in danger and Black's pieces will soon start a decisive onslaught.} ) 31...Kb8 $1 {[%c_effect b8;square;b8;type;GreatFind;persistent;true] Starting a nice plan to get the king into a safe position.} 32.f3 a6 33.h4 Ka7 34.g5 Nb4 {Gukesh decides to grab the a-pawn, but he could start an immediate mating attack with} ( 34...Rd1 {and the knight possibly going to d4.} ) 35.Re2 Nxa2 36.Qe6 Bc7 37.Qf6 Nb4 {White is unable to create any meaningful counterplay.} 38.Kh3 ( 38.h5 Bd8 $1 {[%c_effect d8;square;d8;type;GreatFind;persistent;true] picking up the g5-pawn.} ) 38...Nc6 39.b4 Ne5 40.Qxf4 Ng6 {Further material losses are unavoidable.} 41.Qe3+ Bb6 42.Qc1 Rd1 43.Qc2 Rh1+ 44.Rh2 ( 44.Kg2 Rg1+ 45.Kh2 Nxh4 46.Qe4 Rd4 {winning easily.} ) 44...Rg1 45.Rd2 Nf4+ 46.Kh2 Rxd2+ 47.Qxd2 Rg2+ 48.Qxg2 Nxg2 49.Kxg2 Be3 50.Kg3 b6 51.f4 a5 52.bxa5 bxa5 {0-} 0-1

[Event "Tata Steel Chess India Blitz 2023"]
[Site "Kalkata"]
[Date "2023.09.03"]
[Round "9"]
[White "Vantika, Agrawal"]
[Black "Batsiashvili, Nino"]
[Result "1-0"]
[WhiteElo "2267"]
[BlackElo "2231"]
[ECO "E06"]
[EventDate "2023.??.??"]
[Annotator "Leitao,Rafael"]
[PlyCount "69"]
[Beauty "8043672380967"]
[EventType "blitz"]
[EventCountry "IND"]
[TimeControl "180+2"]

1.d4 d5 2.c4 e6 3.Nf3 Nf6 4.g3 Be7 5.Bg2 O-O 6.O-O a5 {A rare move that has been played a few times by Carlsen. Its greatest merit is to avoid the more theoretical lines, but it's not a useless move since the pawn on a5 is helpful for Black in some variations, either advancing it to a4, as we will see in this game, or else making the a6-square more comfortable for the black bishop after b7-b6.} 7.Qc2 {A natural reaction.} ( 7.Nc3 {is also possible.} ) 7...Nc6 {Placing the knight in front of the c-pawn in Queen's Pawn structures is always strategically dangerous.} ( 7...c6 {with the idea of b6-Ba6 is safer.} ) 8.a3 $1 {[%c_effect a3;square;a3;type;GreatFind;persistent;true] Necessary prophylaxis against 8...Nb4.} ( 8.Rd1 $4 {[%c_effect d1;square;d1;type;Blunder;persistent;true] ends in tragedy:} 8...Nb4 {and Black is already winning $1} ) 8...dxc4 9.Qxc4 a4 {This move justifies the development of the knight on c6. It can now go to a5 and b3.} 10.Nc3 Bd7 {Defending the a-pawn and getting ready for ...Na5.} 11.Qd3 $1 {[%c_effect d3;square;d3;type;GreatFind;persistent;true] When your opponent has a move that she is clearly going to play and that move attacks your piece, remove the piece in advance and only then think about what you're going to do. This is a practical and effective strategy, especially in blitz games.} 11...Na5 12.Bg5 $1 {[%c_effect g5;square;g5;type;GreatFind;persistent;true] I'm generally not a big fan of exchanging a bishop for a knight, but here the strategy is typical of the Catalan and fully justified, as White gains central control and solves the problem of the bishop, which didn't have a nice square.} 12...h6 13.Bxf6 Bxf6 14.Rad1 {White has practically completed development (only the f1-rook needs to be placed on e1) and is ready to advance the center, where he has one more pawn (d- and e-pawns against an e-pawn).} 14...Qb8 {A good move, removing the queen from the x-ray with the d1-rook and preparing to advance b7-b5, gaining active chances on the queenside.} 15.e4 Rd8 ( 15...b5 $1 {[%c_effect b5;square;b5;type;GreatFind;persistent;true] is better, immediately starting the counterplay.} 16.e5 Be7 17.d5 Qb6 {with a double-edged position.} ) 16.Rfe1 ( 16.e5 $1 {[%c_effect e5;square;e5;type;GreatFind;persistent;true] I'm not sure this preparatory move is necessary. White can start advancing immediately with} 16...Be7 17.d5 ) 16...Be8 ( 16...b5 $1 {[%c_effect b5;square;b5;type;GreatFind;persistent;true]} ) 17.e5 Be7 18.Qe2 {A solid blitz move, removing the queen from any potential attack by Black's rook.} ( 18.d5 {is also good.} ) 18...Bc6 ( 18...Qa7 {with the idea of playing ...Qa6 is a better chance, although White is better after} 19.d5 ) 19.h4 ( 19.d5 $1 {[%c_effect d5;square;d5;type;GreatFind;persistent;true] This move could be played immediately:} 19...Bxd5 ( 19...exd5 20.e6 {with a decisive attack.} ) 20.Nxd5 Rxd5 21.Rxd5 exd5 22.e6 {Black is unable to defend.} ) 19...b5 {It's hard to suggest anything for Black.} ( 19...Bxf3 20.Qxf3 c6 21.Re4 {White brings the rook to the attack.} ) 20.d5 $1 {[%c_effect d5;square;d5;type;GreatFind;persistent;true] The decisive blow.} 20...Bxd5 21.Nxd5 exd5 {In positions with opposite-colored bishops, attacking the king is more dangerous than usual. Furthermore, Black has several pieces away from the king, isolated on the queenside, as is the case with the knight, rook, and queen. When you don't have time to calculate too much, as is the case in a blitz game, these strategic factors, which are intuitively evaluated by an experienced player, help you make the right decision.} 22.Nd4 {The knight heads to f5. 22.e6 is equally good.} ( 22.e6 {with a decisive attack. In this case, the knight may also go to e5.} ) 22...c6 23.Nf5 ( 23.e6 {destroys Black's defense.} ) 23...Bf8 24.e6 fxe6 25.Qxe6+ Kh8 26.h5 $1 {[%c_effect h5;square;h5;type;GreatFind;persistent;true] Preparing Nh4-g6.} 26...Qc8 ( 26...Nc4 {is possible, but Black loses here too, for instance::} 27.Nh4 Qd6 28.Ng6+ Kh7 29.Be4 $3 {[%c_effect e4;square;e4;type;Brilliant;persistent;true]} 29...Qxe6 30.Nxf8+ Kg8 31.Nxe6 ) 27.Qg6 Nc4 28.Bh3 Qc7 29.Re7 $1 {[%c_effect e7;square;e7;type;GreatFind;persistent;true] White wins material, and the attack continues.} 29...Qxe7 30.Nxe7 Bxe7 31.Bf5 Kg8 32.Re1 Bf6 33.Qh7+ Kf8 34.Qh8+ Kf7 35.Bg6# 1-0

[Event "Tata Steel Chess India Rapid & Blitz 2023"]
[Site "Kalkata"]
[Date "2023.09.02"]
[Round "9"]
[White "Koneru, Humpy"]
[Black "Divya, Deshmukh"]
[Result "0-1"]
[WhiteElo "2461"]
[BlackElo "2216"]
[ECO "E15"]
[EventDate "2023.??.??"]
[Annotator "Leitao,Rafael"]
[PlyCount "102"]
[Beauty "6942298769428"]
[EventType "rapid"]
[EventCountry "IND"]
[TimeControl "1500+10"]

1.d4 Nf6 2.c4 e6 3.Nf3 b6 4.g3 Ba6 5.Nbd2 {A positional choice against the Queen's Indian. I played this move several times during the most active years of my career. Nowadays 5.b3 and 5.Qc2 are the most popular.} 5...c5 {A good move, but 5...Bb4, 5...Bb7 and 5...d5 are more popular.} 6.Bg2 ( 6.e4 $1 {[%c_effect e4;square;e4;type;GreatFind;persistent;true] is the critical test.} 6...cxd4 7.e5 Ng4 8.h3 Nh6 9.Bg2 {I think White has more chances of an opening advantage in this position.} ) 6...Nc6 7.dxc5 bxc5 8.O-O Be7 9.b3 O-O 10.Bb2 {We arrive at a typical middlegame for the Queen's Indian pawn structure. Black has a free game and a pawn more in the center, something that I learned to appreciate with my former coach, GM Milos.} 10...d5 ( 10...Qc7 {is also possible, delaying central activity.} ) 11.cxd5 exd5 12.Rc1 {On the board we have hanging pawns, one of the most important pawn structures in chess. This is a good version for Black because his pieces are well-developed and White's position is a bit passive.} 12...Qb6 13.Re1 Ne4 $5 {[%c_effect e4;square;e4;type;Interesting;persistent;true] There's nothing wrong with this move, although it's more natural to bring the rooks into the game. Should the rooks go to c8 and d8, d8 and e8, or somewhere else $2 As usual, this is a difficult question, and if you are below 2700, it's probably better to just toss a coin to decide.} ( 13...Rfd8 ) ( 13...Rac8 ) ( 13...Rad8 ) 14.Ne5 {A good move, exchanging a pair of knights.} ( 14.Nxe4 {is not very good:} 14...dxe4 15.Nd2 {Here Black achieves a good position with the typical pawn sacrifice:} 15...e3 $1 {[%c_effect e3;square;e3;type;GreatFind;persistent;true] disrupting White's pawn structure.} ) ( 14.Qc2 f5 $1 {[%c_effect f5;square;f5;type;GreatFind;persistent;true] This is Black's idea: the knight is held in an active position on e4.} ) 14...Nxe5 15.Bxe5 Rad8 16.Qc2 ( 16.Nxe4 {Maybe it's time to finally remove this annoying piece.} 16...dxe4 17.Qc2 e3 18.fxe3 Rfe8 {with an equal position.} ) 16...f5 17.e3 Qe6 18.Bb2 Rc8 $1 {[%c_effect c8;square;c8;type;GreatFind;persistent;true]} 19.Nf3 Rfd8 ( 19...d4 $1 {[%c_effect d4;square;d4;type;GreatFind;persistent;true] This is a good time to advance one of the hanging pawns, a strategy that always needs to be considered. Black takes advantage of the rook's x-ray with the white queen.} ) 20.Qb1 Bf6 ( 20...h6 {An interesting plan is to advance the g-pawn:} 21.Qa1 g5 22.Ne5 g4 $1 {[%c_effect g4;square;g4;type;GreatFind;persistent;true] Securing the knight's position. Black has the initiative.} ) 21.Qa1 Kf7 {A prophylactic move, anticipating the exchanges on f6.} 22.Ne5+ ( 22.Bxf6 Qxf6 23.Qxf6+ Kxf6 {This is the point of bringing the king to f7.} ) 22...Kg8 23.Nf3 Kf7 24.h4 h6 25.Ne5+ Kg8 26.Nf3 Kf7 27.Ne5+ Kg8 28.Nf3 {A draw is a sensible result, but Divya needs to win and decides to keep fighting.} 28...Bxb2 29.Qxb2 g5 $5 {[%c_effect g5;square;g5;type;Interesting;persistent;true] A risky move, but Black is trying to complicate the game.} 30.Red1 ( 30.b4 $1 {[%c_effect b4;square;b4;type;GreatFind;persistent;true] is a better way to get counter-chances.} ) 30...Kh7 $6 {[%c_effect h7;square;h7;type;Inaccuracy;persistent;true]} ( 30...Bb7 ) ( 30...Qe7 $5 {[%c_effect e7;square;e7;type;Interesting;persistent;true] is an interesting move to fight against White's plan of b3-b4.} ) 31.hxg5 hxg5 32.Qe5 $6 {[%c_effect e5;square;e5;type;Inaccuracy;persistent;true]} ( 32.b4 $1 {[%c_effect b4;square;b4;type;GreatFind;persistent;true] This definitely should be played now, especially as Black's king is not comfortable on h7. White has the advantage.} ) 32...Qxe5 33.Nxe5 Kg7 $1 {[%c_effect g7;square;g7;type;GreatFind;persistent;true] The king is going to be well-placed now.} 34.Rc2 Kf6 35.Nf3 $2 {[%c_effect f3;square;f3;type;Mistake;persistent;true] This is the wrong path for the knight. White should choose either one of the computer moves (objectively best), 35.Bxe4 and 35.f4, or the human move (not so good, but easier to play and understand) 35.Nd3.} ( 35.f4 Nxg3 36.Bf3 {The rook may go to g2 or h2, and somehow the machine defends White's position.} ) ( 35.Bxe4 {Another very difficult move, parting with such an important bishop.} 35...dxe4 ( 35...fxe4 36.f4 $1 {[%c_effect f4;square;f4;type;GreatFind;persistent;true]} ) 36.Rxd8 Rxd8 37.Rxc5 Rd1+ 38.Kh2 Be2 39.g4 $1 {[%c_effect g4;square;g4;type;GreatFind;persistent;true] The only move, otherwise Black plays g5-g4. White escapes.} ) ( 35.Nd3 {A more natural choice, but here Black is better after} 35...g4 36.Nf4 d4 ) 35...g4 36.Ne1 ( 36.Nd2 {leaves White in a terrible bind:} 36...Bd3 37.Rcc1 Rh8 38.Bf1 c4 {with a winning position for Black.} ) 36...c4 $2 {[%c_effect c4;square;c4;type;Mistake;persistent;true]} ( 36...d4 $1 {[%c_effect d4;square;d4;type;GreatFind;persistent;true] is much stronger:} 37.exd4 cxd4 38.Rxc8 Bxc8 {The knight can go to c3, and the d-pawn is very dangerous. Black's position is winning.} ) 37.Bf1 ( 37.Bxe4 {is again difficult to play but possible to defend with the help of the machine.} 37...dxe4 ( 37...fxe4 38.Ng2 ) 38.Rxd8 Rxd8 39.bxc4 Rd1 40.Kf1 Ra1 41.Ke2 Rxa2 42.Kd2 Bxc4 43.Kc3 {with a drawn endgame.} ) 37...Ke5 ( 37...Bb5 $1 {[%c_effect b5;square;b5;type;GreatFind;persistent;true] is better, preventing the capture on c4:} 38.bxc4 $2 {[%c_effect c4;square;c4;type;Mistake;persistent;true]} 38...Ba4 ) 38.Rdc1 ( 38.bxc4 $1 {[%c_effect c4;square;c4;type;GreatFind;persistent;true] is necessary.} 38...dxc4 39.Rxd8 Rxd8 40.Bxc4 Bxc4 41.Rxc4 Rd1 42.Kf1 {White survives.} ) 38...Ng5 $1 {[%c_effect g5;square;g5;type;GreatFind;persistent;true]} 39.Be2 ( 39.bxc4 {The c-pawn cannot be captured:} 39...dxc4 40.Bxc4 $2 {[%c_effect c4;square;c4;type;Mistake;persistent;true]} 40...Bxc4 41.Rxc4 Rxc4 42.Rxc4 Rd1 43.Kf1 Nf3 ) 39...cxb3 40.Rxc8 $2 {[%c_effect c8;square;c8;type;Mistake;persistent;true] This is a blunder that abruptly decides the game.} ( 40.axb3 $1 {[%c_effect b3;square;b3;type;GreatFind;persistent;true]} 40...Rxc2 ( 40...Bxe2 $2 {[%c_effect e2;square;e2;type;Mistake;persistent;true]} 41.Rxc8 ) 41.Rxc2 {with good drawing chances for White.} ) 40...Rxc8 41.Rxc8 bxa2 $1 {[%c_effect a2;square;a2;type;GreatFind;persistent;true] It's all over. The a-pawn decides the game.} 42.Re8+ ( 42.Rc1 Bxe2 43.Ra1 Bc4 {with an easy win.} ) 42...Kd6 43.Nc2 Bxe2 44.Ra8 Nf3+ 45.Kh1 Ne1 ( 45...a6 {is also good.} ) 46.Na1 ( 46.Rxa7 {is the only chance, but the endgame is easily winning for Black after} 46...Nxc2 47.Rxa2 Bd3 ) 46...a6 47.Rc8 Bd3 48.Rc1 Nc2 $1 {[%c_effect c2;square;c2;type;GreatFind;persistent;true] A nice finishing touch.} 49.Rxc2 ( 49.Nxc2 Bxc2 50.Ra1 Bb1 ) 49...Bxc2 50.Nxc2 Kc5 51.Kg2 Kc4 {Black's king played a decisive role in this game.} 0-1